Cogmind - Beta 16.1 @@@ ROGUE MODE // 2026.02.17 @ 17:40:13 Player: naththebg Result: Destroyed by Y-54 Guardian with Gatling Laser Performance ------------- Evolutions (0) 0 Regions Visited (3) 600 Robots Destroyed (26) 130 Value Destroyed (705) 705 Prototype IDs (0) 0 Alien Tech Used (0) 0 Bonus (0) 0 TOTAL SCORE: 1435 Bonus ------- None Cogmind --------- Core Integrity 0/250 Matter 258/300 Energy 200/200 System Corruption 0% Temperature Hot (280) Movement Rolling (110) Location -7/Recycling Parts ------- > --- POWER (1) -------- Subdweller Power Source > --- PROPULSION (2) --- Subdweller Monowheel Subdweller Monowheel > --- UTILITY (2) ------ Large Storage Unit Makeshift Light Armor Plating > --- WEAPON (2) ------- Subdweller Machine Gun Grenade Launcher > --- INVENTORY (15) --- Subdweller Power Source Subdweller Monowheel Subdweller Monowheel Large Matter Pod (150) Structural Scanner Subdweller Optics Subdweller Optics Scrap Shield Subdweller Machine Gun Grenade Launcher Multitool Makeshift Sword Peak State ------------ > --- POWER ------------ Subdweller Power Source > --- PROPULSION ------- Subdweller Monowheel Subdweller Monowheel > --- UTILITY ---------- Large Storage Unit Makeshift Light Armor Plating > --- WEAPON ----------- Subdweller Laser Subdweller Laser > --- INVENTORY -------- Subdweller Power Source Subdweller Monowheel Subdweller Monowheel Subdweller Monowheel Large Matter Pod Structural Scanner Subdweller Optics Subdweller Optics Scrap Shield Subdweller Machine Gun Subdweller Machine Gun Grenade Launcher Grenade Launcher Multitool [Rating: 17] Favorites ----------- Power Light Ion Engine Engine Light Ion Engine Propulsion Light Treads Treads Light Treads Leg Aluminum Leg Wheel Subdweller Monowheel Utility Large Storage Unit Device Subdweller Optics Storage Large Storage Unit Protection Light Armor Plating Weapon Subdweller Laser Energy Gun Subdweller Laser Ballistic Gun Assault Rifle Ballistic Cannon Light Cannon Launcher Grenade Launcher Build | -11 -10 -10 -7 ------- Run | Yrd Mat Sub Rec Slots Evolved . | . . . . Power . | . . . . Propulsion . | . . . . Utility . | . . . . Weapon . | . . . . Parts Attached 26 | 6 6 13 1 Power 4 | 1 . 3 . Engine 4 | 1 . 3 . Core . | . . . . Reactor . | . . . . Propulsion 8 | 2 2 4 . Treads 2 | . 2 . . Leg 2 | 2 . . . Wheel 4 | . . 4 . Hover . | . . . . Flight . | . . . . Utility 5 | 1 2 2 . Device 1 | . . 1 . Storage 2 | 1 1 . . Processor . | . . . . Hackware . | . . . . Protection 2 | . 1 1 . Artifact . | . . . . Weapon 9 | 2 2 4 1 Energy Gun 2 | . . 2 . Energy Cannon . | . . . . Ballistic Gun 4 | 2 . 1 1 Ballistic Cannon 1 | . 1 . . Launcher 2 | . 1 1 . Special Weapon . | . . . . Impact Weapon . | . . . . Slashing Weapon . | . . . . Piercing Weapon . | . . . . Special Melee Weapon . | . . . . Unidentified Prototypes . | . . . . Parts Lost 5 | . . 4 1 Power 1 | . . 1 . Propulsion 1 | . . 1 . Utility 1 | . . 1 . Weapon 2 | . . 1 1 Highest Loss Streak 2 | . . 1 2 To Critical Strikes . | . . . . Average Backups 12 | 4 9 13 12 Power 1 | . 1 1 1 Propulsion 4 | 2 4 4 2 Utility 3 | . 1 3 5 Weapon 3 | 1 3 3 3 Tool/Special . | . . . . Unused Backups 13 | . . 5 8 Power 1 | . . . 1 Propulsion 5 | . . 3 2 Utility 5 | . . 1 4 Weapon 1 | . . 1 . Tool/Special 1 | . . . 1 Average Slot Usage (%) 98 | . 98 98 100 Engine 13 | . 14 13 14 Treads 20 | . 24 19 . Leg 1 | . 3 . . Wheel 6 | . . 7 28 Device 1 | . . 1 . Storage 14 | . 14 14 14 Protection 11 | . 12 11 14 Energy Gun 10 | . . 15 10 Ballistic Gun 4 | . 7 2 14 Ballistic Cannon 6 | . 12 4 . Launcher 6 | . 8 5 3 Peak Build Rating 17 | 6 8 17 17 Average Rating 10 | 3 7 12 16 On Entrance 7 | . 6 8 15 Avg Prop Armor Cover (%) 11 | . . 11 . Naked Turns . | . . . . Heaviest Build 37 | 12 32 37 37 Greatest Support 40 | 20 40 40 40 Greatest Overweight (x) 1 | . . 1 . Average Overweight (x) . | . . . . Largest Inventory Capacity 15 | 8 15 15 15 Average Capacity 14 | 6 14 15 15 Most Carried 15 | 7 12 15 14 Average Carried 12 | 4 9 14 13 Final Capacity 15 | 8 15 15 15 Final Carried 15 | 6 12 15 13 Class Distribution -------------------- 91% | Mutant 8% | Scavenger-Mutant Dominant Class ---------------- Mutant | -10/Materials Mutant | -10/Subcaves Mutant | -7/Recycling Resources | -11 -10 -10 -7 ----------- Run | Yrd Mat Sub Rec Matter Collected 878 | 216 152 510 . Remotely . | . . . . Salvage Created 515 | . 146 369 . Parts 58 | . 23 35 . Haulers Intercepted . | . . . . Recyclers Shooed 1 | . 1 . . Parts Field Recycled . | . . . . Retrieved Matter . | . . . . Parts Self-Destructed 12 | . . 12 . Prevented . | . . . . Parts Restored . | . . . . Kills | -11 -10 -10 -7 ------- Run | Yrd Mat Sub Rec Combat Hostiles Destroyed 20 | . 9 11 . Guns 7 | . . 7 . Cannons 1 | . . 1 . AOE 12 | . 9 3 . Classes Destroyed 7 | . 5 2 . Worker 2 | . 2 . . Operator 1 | . 1 . . Turret 1 | . . 1 . Watcher 2 | . 2 . . Swarmer 8 | . 6 2 . Grunt 3 | . 3 . . Subdweller 9 | . . 9 . Best Kill Streak 4 | . 4 3 . Combat Bots Only 3 | . 3 2 . Max Kills in Single Turn 3 | . 3 2 . Gunslinging . | . . . . Exploded 3 | . 3 2 . Melee . | . . . . Uniques/NPCs Destroyed . | . . . . Combat | -11 -10 -10 -7 -------- Run | Yrd Mat Sub Rec Hostile Shots Fired 151 | . 22 81 48 Missed 59 | . 5 31 23 Hits 92 | . 17 50 25 Projectile 92 | . 17 50 25 AOE 3 | . . 3 . Critical Strikes 1 | . 1 . . Damage Taken 1301 | . 156 951 194 Core 252 | . 6 179 67 Absorbed by Shields . | . . . . Core Remaining (%) 100 | 100 . . . Volleys Fired 55 | . 17 32 6 Largest 2 | . 2 2 2 Hottest 120 | . 50 120 90 Shots Fired 90 | . 19 59 12 Gun 59 | . 2 46 11 Cannon 12 | . 9 3 . Launcher 19 | . 8 10 1 Special . | . . . . Kinetic 26 | . 11 9 6 Thermal 45 | . . 40 5 Explosive 19 | . 8 10 1 Electromagnetic . | . . . . Robot Hit Streak 17 | . 3 17 4 Robot Miss Streak 2 | . 2 1 2 Penetration Max . | . . . . Secondary Targets . | . . . . Shots Hit Robots 52 | . 9 35 8 Core Hits 45 | . 18 24 3 Critical Kills . | . . . . Critical Parts Destroyed . | . . . . Critical Strikes 1 | . . 1 . Destroy 1 | . . 1 . Melee Attacks . | . . . . Impact . | . . . . Slashing . | . . . . Piercing . | . . . . Sneak Attacks . | . . . . Combat Hostiles . | . . . . Follow-up Attacks . | . . . . Damage Inflicted 1905 | 5 726 1007 167 Guns 766 | . 15 602 149 Cannons 137 | . 106 31 . Explosions 996 | . 604 374 18 Melee . | . . . . Ramming 6 | 5 1 . . Kinetic 242 | . 121 59 62 Thermal 661 | . . 574 87 Explosive 996 | . 604 374 18 Electromagnetic . | . . . . Impact . | . . . . Slashing . | . . . . Piercing . | . . . . Highest Corruption . | . . . . Average Corruption . | . . . . Corruption Purged . | . . . . Corruption Blocked . | . . . . Overload Shots . | . . . . Overflow Damage 18 | . 10 8 . Projectiles . | . . . . Explosions 18 | . 10 8 . Melee . | . . . . Knockbacks 1 | . . 1 . Impact . | . . . . Kinetic 1 | . . 1 . Secondary . | . . . . Self-Inflicted Damage 61 | . 20 41 . Shots 5 | . 2 3 . Rammed 1 | . 1 . . Targets Rammed 3 | 2 1 . . Kicked 2 | 2 . . . Crushed . | . . . . Highest Temperature 273 | . 4 66 273 Average Temperature 54 | . 3 26 160 Received Heat Transfer 285 | . 6 219 60 Siege Activations . | . . . . Martial Activations . | . . . . Shielding Activations . | . . . . Robots Disrupted . | . . . . Combat Hostiles . | . . . . Robots Corrupted . | . . . . Combat Hostiles . | . . . . Parts Fried . | . . . . Impact Corruptions . | . . . . Robots Melted . | . . . . Combat Hostiles . | . . . . Parts Melted 1 | . . 1 . Heat Transferred 800 | . . 700 100 Parts Sabotaged . | . . . . Parts Stolen . | . . . . Parts Stripped . | . . . . Power Chain Reactions . | . . . . Alert | -11 -10 -10 -7 ------- Run | Yrd Mat Sub Rec Maximum Alert Level 1 | . 1 . . Low Security (%) 49 | 100 42 . 100 Level 1 50 | . 57 . . Level 2 . | . . . . Level 3 . | . . . . Level 4 . | . . . . Level 5 . | . . . . High Security . | . . . . Max Security . | . . . . Peak Influence 345 | . 345 . 4 Initial . | . . . . Average 150 | . 170 . . Influence Increases 584 | . 430 150 4 Destroy 0b10 Robot/C 240 | . 180 60 . Destroy 0b10 Robot/NC 25 | . 25 . . Destroy Leader 44 | . 44 . . Successful Hack 18 | . 18 . . Disable Machine 105 | . 105 . . Destroy Structure 47 | . 43 . 4 Lose Combat Pursuer 105 | . 15 90 . Influence Decreases 580 | . 188 392 . Entered New Map 117 | . . 117 . Time Decay 453 | . 188 265 . Lost Part 10 | . . 10 . Squads Dispatched 1 | . 1 . . Investigation . | . . . . Extermination . | . . . . Reinforcement 1 | . 1 . . Assault . | . . . . Garrison . | . . . . Intercept . | . . . . Searches Triggered . | . . . . Construction Impeded . | . . . . Haulers Reinforced . | . . . . Active Scanning Responses . | . . . . Cargo Convoy Interrupts . | . . . . Stealth | -11 -10 -10 -7 --------- Run | Yrd Mat Sub Rec Distress Signals 3 | . 3 . . Communications Jammed . | . . . . Distress Signals . | . . . . Times Spotted 33 | . 11 21 1 Peak Tracking Total 6 | . 6 4 1 Tactical Retreats 5 | . 1 4 . Traps | -11 -10 -10 -7 ------- Run | Yrd Mat Sub Rec Traps Triggered . | . . . . Indirectly . | . . . . Trap Hack Attempts . | . . . . Triggered . | . . . . Disarmed . | . . . . Reprogrammed . | . . . . Reused . | . . . . Traps Extracted . | . . . . Installed . | . . . . Triggered . | . . . . Machines | -11 -10 -10 -7 ---------- Run | Yrd Mat Sub Rec Machines Disabled 10 | . 7 3 . Max in Single Turn 2 | . 2 2 . Machines Repaired . | . . . . Machines Dismantled . | . . . . Machines Sabotaged . | . . . . Overloaded Fab Kills . | . . . . Hacking | -11 -10 -10 -7 --------- Run | Yrd Mat Sub Rec Machines Accessed 5 | . 5 . . Terminals 4 | . 4 . . Fabricators . | . . . . Repair Stations . | . . . . Recycling Units 1 | . 1 . . Scanalyzers . | . . . . Garrison Access . | . . . . Total Hacks 7 | . 7 . . Successful 4 | . 4 . . Failed 3 | . 3 . . Catastrophic . | . . . . Database Lockouts . | . . . . Manual 8 | . 8 . . Terminals 6 | . 6 . . Fabricators . | . . . . Repair Stations . | . . . . Recycling Units 1 | . 1 . . Scanalyzers . | . . . . Garrison Access . | . . . . Terminal Hacks . | . . . . Fabricator Hacks . | . . . . Repair Station Hacks . | . . . . Recycling Unit Hacks 1 | . 1 . . Retrieve Components 1 | . 1 . . Scanalyzer . | . . . . Garrison Access Hacks . | . . . . Unauthorized Hacks 3 | . 3 . . Terminals 3 | . 3 . . Botnet 3 | . 3 . . Fabricators . | . . . . Repair Stations . | . . . . Recycling Units . | . . . . Scanalyzers . | . . . . Garrison Access . | . . . . Data Cores Recovered . | . . . . Used . | . . . . Hacking Detections 3 | . 3 . . Full Trace Events . | . . . . Feedback Events . | . . . . Feedback Blocked . | . . . . Robot Schematics Acquired . | . . . . Robots Built . | . . . . Authchips . | . . . . Time . | . . . . Total Robot Build Rating . | . . . . Part Schematics Acquired . | . . . . Parts Built . | . . . . Authchips . | . . . . Time . | . . . . Total Part Build Rating . | . . . . Part Studies Acquired . | . . . . Parts Repaired . | . . . . Time . | . . . . Parts Recycled . | . . . . Recycled Matter . | . . . . Retrieved Matter . | . . . . Retrieved Components 3 | . 3 . . Parts Scanalyzed . | . . . . Part Schematics Acquired . | . . . . Parts Damaged . | . . . . Bothacking | -11 -10 -10 -7 ------------ Run | Yrd Mat Sub Rec Used RIF Installer . | . . . . Robots Hacked . | . . . . Non-combat . | . . . . Combat . | . . . . Robot Hacks Applied . | . . . . Relay Couplers Released . | . . . . Fabnet Peak Effective % . | . . . . Robots Rewired . | . . . . Allies Hacked . | . . . . Hacks Repelled . | . . . . Allies | -11 -10 -10 -7 -------- Run | Yrd Mat Sub Rec Total Allies . | . . . . Largest Group . | . . . . Highest-Rated Group . | . . . . Highest-Rated Ally . | . . . . Total Orders . | . . . . Ally Attacks . | . . . . Total Damage . | . . . . Kills . | . . . . Allies Corrupted . | . . . . Allies Melted . | . . . . Intel | -11 -10 -10 -7 ------- Run | Yrd Mat Sub Rec Active Infowar (turns) 155 | . . 155 . Optics 155 | . . 155 . Robot Analysis Total . | . . . . Derelict Logs Recovered 1 | . . 1 . Drone Launches . | . . . . Drone Recoveries . | . . . . Exploration | -11 -10 -10 -7 ------------- Run | Yrd Mat Sub Rec Turns Passed 2089 | 56 592 1418 23 Spaces Moved 1288 | 37 341 908 2 Core 8 | 8 . . . Treads 770 | . 288 482 . Legs 82 | 29 53 . . Wheels 428 | . . 426 2 Hover . | . . . . Flight . | . . . . Fastest Speed 50 | 50 120 110 110 Average Speed 142 | 104 153 139 110 Slowest Speed 160 | 120 160 160 110 Overloaded Moves . | . . . . Propulsion Burnouts . | . . . . Robots Hopped . | . . . . Potential Cave-ins . | . . . . Cave-ins Triggered . | . . . . Exploration Rate (%) 27 | 3 52 49 4 Regions Visited 3 Branch Regions 2 Pre-discovered Areas 1 | . . 1 . Known Exits Taken . | . . . . Unknown Exits Taken 3 | 1 1 1 . Scrap Searched . | . . . . Spaces Dug 8 | . 8 . . Terrain Destroyed 67 | . 45 18 4 Melee . | . . . . Projectile . | . . . . AOE 67 | . 45 18 4 Terrain Rammed . | . . . . Walls Destroyed . | . . . . Machines Disabled . | . . . . Actions | -11 -10 -10 -7 --------- Run | Yrd Mat Sub Rec Total 1450 | 51 386 1002 11 Wait 31 | . 13 17 1 Move 1285 | 36 340 907 2 Hop . | . . . . Pick Up 28 | 7 6 15 . Fast Attach 10 | 5 1 4 . Attach 5 | 1 . 2 2 Detach . | . . . . Swap 18 | . 7 11 . Drop 15 | . 1 14 . Fire 55 | . 17 32 6 Melee . | . . . . Ram . | . . . . Kick 2 | 2 . . . Crush 1 | . 1 . . Escape Stasis . | . . . . Rewire . | . . . . Trap . | . . . . Miscellaneous . | . . . . Route ------- -11/Scrapyard -10/Materials (discovered 2 exits: [*Mat] / [*Sub]) -10/Subcaves (discovered 2 exits: [*Mat] / [*Rec]) -7/Recycling History --------- Turn | Location | Event 2 | -11/Scrapyard | Met Revision 17 11 | -11/Scrapyard | Discovered new exit (range 15) 57 | -11/Scrapyard | Entered Materials 252 | -10/Materials | Discovered new exit (range 15) 317 | -10/Materials | Build established: Mutant 639 | -10/Materials | Discovered new exit (range 7) 649 | -10/Materials | Entered Subcaves 1075 | -10/Subcaves | Shifting Twisted Machinery released Sub. Monowheel 1085 | -10/Subcaves | Shifting Twisted Machinery released Sub. Laser 1209 | -10/Subcaves | Discovered new exit (range 14) 1391 | -10/Subcaves | Learned location of Zion (-6) 1674 | -10/Subcaves | Ambushed by Subdwellers from Twisted Machinery 1761 | -10/Subcaves | Ambushed by Subdwellers from Twisted Machinery 1824 | -10/Subcaves | Discovered new exit (range 7) 1830 | -10/Subcaves | Core integrity fell below 50% 2067 | -10/Subcaves | Entered Recycling 2078 | -7/Recycling | Core integrity fell below 20% 2090 | -7/Recycling | Destroyed by Y-54 Guardian with Gatling Laser Last Messages --------------- 01795_ Acquired Sub. Power Source. 01798_ Dropped Lgt. Treads. 01799_ Acquired Sub. Monowheel. 01824_ EXIT=FOUND 01825_ Sub. Monowheel destroyed. 01849_ Acquired Sub. Monowheel. 01850_ Acquired 15 matter. 01941_ ZE-91W(R) suffers critical hit (Destroy). 01944_ Sub. Optics melted. 01944_ ZE-91W(R) destroyed. 02002_ Sub. Monowheel shoots sparks and powers down. 02044_ Dropped Broken Sub. Monowheel. 02045_ Acquired Mak. Sword. 02063_ Sub. Laser destroyed. 02065_ Machine disabled. LOCATION=UNKNOWN GOAL=ESCAPE 02070_ Y-54 Guardian springs to life. 02086_ Sub. Laser destroyed. Map ----- +----------------------------------------------------+ | ???????????????????????????????? | | ???????????????????????????????? | | ???????????????????????????????? | | ???????????????????????????????? | | ???????????????????????????????? | | ???????????????????????????????? | | ???????????????????????????????? | | ???????????????????????????????? | | ???????????????????????????????? | | ???????????????????????????????? | | ????? ????????????????????? | | ????# #???????????????????? | | ????# #???????????????????? | | ????# #???????????????????? | | ????# #???????????????????? | | ???## #???????????????????? | | ???# #???????????????????? | | ???# #???????????????????? | | ???# +???????????????????? | | ???# Y #???????????????????? | | ??## #???????????????????? | | ??#* #???????????????????? | | ??#** #???????????????????? | | ??#** #???????????????????? | | ????# #???????????????????? | | ????# @ #???????????????????? | | ????# #???????????????????? | | ????# ######???????????????????? | | ????# ?????????????????????????? | | ????#??????????????????????????? | | ???????????????????????????????? | | ???????????????????????????????? | | ???????????????????????????????? | | ???????????????????????????????? | | ???????????????????????????????? | | | | | | | | | | | | | | | | | | | | | | | | | | | | | | | +----------------------------------------------------+ Best States ------------- Heat Dissipation 25 Energy Generation 15 Energy Capacity 200 Matter Stores 300 Matter Capacity 300 Sight Range 21 Terrain Scan Density 10 Armor Coverage 150 Evasion (%) 55 Recoil Reduction 2 Item Schematics ----------------- None Robot Schematics ------------------ None Fabricated ------------ Nothing Repaired ---------- Nothing Studied --------- None Alien Tech Used ----------------- None Achievements -------------- You Again Challenges ------------ None Game ------ Seed EfficiencyCryofiberScrap Manual? 0 Play Time 00:14:25 Cumulative 459.8 hours Start 2026.02.15 @ 07:55:35 End 2026.02.17 @ 17:40:13 Sessions 2 Manual Loads 0 Difficulty Rogue Special Mode None Game No. 225 Rogue 225 Adventurer 0 Explorer 0 Win Type - Total 13 Types 9/0/2/0/0/0/0/1/0/1 Lore% 85 Gallery% 79 Achievement% 63 Wizard Run 0 Options --------- Layout 1 ASCII 0 Keyboard 0 Movement Mouse Keybinds 0 Fullscreen 1 Font 24/Smallcaps Map View 50x35 Zoom Use 0% Tactical HUD 1 Map Filters NONE Filters NONE Steam 1 RUN: cc58a80a-c243-4ec4-bc22-683dea86acf7